bitfinex/quotes_BTCUSD_20240901
["timestamp","ask_amount","ask_price","bid_price","bid_amount"]
[1725195011906,0.000819,58119.0,58107.0,0.00344154]
[1725195011907,0.000819,58119.0,58112.0,0.1933]
[1725195012113,0.172075,58115.0,58113.0,0.1093]
[1725195012323,0.000819,58119.0,58115.0,0.1093]
[1725195012324,0.516208,58116.0,58115.0,0.1093]
[1725195013136,0.616208,58116.0,58115.0,0.1093]
[1725195013343,0.616208,58116.0,58115.0,0.1933]
[1725195013572,0.272069,58116.0,58115.0,0.1933]
[1725195014655,0.1,58116.0,58115.0,0.2298384]
[1725195014858,0.272067,58117.0,58116.0,0.1933]
[1725195015266,0.1,58117.0,58116.0,0.1933]
[1725195015480,0.344052,58131.0,58115.0,0.0365384]
[1725195015481,0.17205,58123.0,58115.0,0.0365384]
[1725195015703,0.344052,58131.0,58121.0,0.084]
[1725195015704,0.172051,58122.0,58121.0,0.084]
[1725195015924,0.344064,58129.0,58121.0,0.1933]
[1725195016149,0.50540786,58148.0,58119.0,0.172058]
[1725195016359,0.172041,58126.0,58118.0,0.00544096]
[1725195016564,0.344031,58135.0,58118.0,0.00544096]
[1725195016565,0.344031,58135.0,58121.0,0.1933]
[1725195016775,0.344067,58129.0,58121.0,0.172053]
[1725195016992,0.01798559,58149.0,58119.0,0.344116]
[1725195016993,0.17203,58130.0,58126.0,0.002]
[1725195017210,0.17203,58130.0,58129.0,0.1933]
[1725195017404,0.860142,58130.0,58129.0,0.1933]
[1725195018295,0.960142,58130.0,58129.0,0.1933]
[1725195018493,3.970379,58130.0,58129.0,0.1933]
[1725195019538,4.314435,58130.0,58129.0,0.1933]
[1725195020198,4.82704264,58130.0,58129.0,0.1933]
[1725195020654,4.82704264,58130.0,58129.0,0.084]
[1725195021108,4.82704264,58130.0,58112.0,0.441169]
[1725195021109,0.860392,58113.0,58112.0,0.441169]
[1725195021327,0.172091,58109.0,58106.0,0.0020008]
[1725195021533,0.172094,58108.0,58107.0,0.1933]
[1725195021984,0.516253,58111.0,58110.0,0.1953]
[1725195022196,0.172084,58111.0,58110.0,0.1953]
[1725195023038,0.86042,58111.0,58110.0,0.1933]
[1725195023254,0.516252,58111.0,58110.0,0.1933]
[1725195023895,0.516252,58111.0,58110.0,0.1941998]
[1725195025393,0.172083,58112.0,58111.0,0.1933]
[1725195026308,0.000818,58119.0,58115.0,0.365372]
[1725195026572,0.000818,58119.0,58118.0,0.084]
[1725195026843,0.000818,58119.0,58118.0,0.1933]
[1725195027091,0.172878,58119.0,58118.0,0.1933]
[1725195027348,0.96112,58119.0,58118.0,0.1933]
[1725195029821,0.616999,58119.0,58118.0,0.1933]
[1725195030304,0.100818,58119.0,58118.0,0.1933]
[1725195030538,0.000818,58119.0,58118.0,0.388363]
[1725195030738,0.100818,58119.0,58118.0,0.388363]
[1725195031270,0.000818,58119.0,58118.0,0.390363]
[1725195031513,0.000818,58119.0,58118.0,0.388363]
[1725195031748,0.000818,58119.0,58118.0,0.40508518]
[1725195031989,0.000818,58119.0,58118.0,0.23502218]
[1725195032215,0.000818,58119.0,58118.0,0.40708518]
[1725195032457,0.000818,58119.0,58118.0,0.75121218]
[1725195032719,0.000818,58119.0,58118.0,1.10033918]
[1725195032960,0.000818,58119.0,58118.0,1.11033918]
[1725195033220,0.17204,58126.0,58125.0,0.1935]
[1725195033435,0.51612,58126.0,58125.0,0.1935]
[1725195033657,0.51612,58126.0,58125.0,0.2102646]
[1725195033658,0.17204,58126.0,58125.0,0.2102646]
[1725195033871,0.51612,58126.0,58125.0,0.2102646]
[1725195034073,0.344058,58130.0,58125.0,0.2102646]
[1725195034279,0.172036,58128.0,58127.0,0.1935]
[1725195034946,0.172036,58128.0,58127.0,0.2102646]
[1725195039778,0.172032,58129.0,58128.0,0.0824]
[1725195040036,0.272032,58129.0,58128.0,0.09914881]
[1725195040476,0.272032,58129.0,58128.0,0.21024881]
[1725195041341,0.1,58129.0,58128.0,0.21024881]
[1725195041601,0.1,58129.0,58128.0,0.40385175]
[1725195041860,0.1,58129.0,58128.0,0.23181775]
[1725195042070,0.272022,58132.0,58130.0,0.1111]
[1725195042276,0.1,58132.0,58131.0,0.0824]
[1725195042490,0.1,58133.0,58132.0,0.1935]
[1725195042699,0.172019,58133.0,58132.0,0.1935]
[1725195042925,0.1,58133.0,58132.0,0.1935]
[1725195043141,0.1,58133.0,58132.0,0.21024881]
[1725195043347,0.172018,58134.0,58132.0,0.12784881]
[1725195043573,0.172018,58134.0,58133.0,0.0824]
[1725195043789,0.272018,58134.0,58133.0,0.0824]
[1725195044002,0.272018,58134.0,58133.0,0.09914881]
[1725195044216,0.1,58134.0,58133.0,0.09914881]
[1725195044426,0.272016,58134.0,58133.0,0.09914881]
[1725195044624,0.1,58134.0,58133.0,0.09914881]
[1725195044773,0.172016,58135.0,58133.0,0.09914881]
[1725195044974,0.1,58134.0,58133.0,0.09914881]
[1725195045177,0.272016,58134.0,58133.0,0.09914881]
[1725195047700,0.616048,58134.0,58133.0,0.09914881]
[1725195048078,0.616048,58134.0,58133.0,0.0824]
[1725195048306,0.616048,58134.0,58133.0,0.09914573]
[1725195048455,0.172043,58125.0,58124.0,0.1935]
[1725195048662,0.172043,58125.0,58124.0,0.0824]
[1725195048663,0.860215,58125.0,58124.0,0.0824]
[1725195048888,1.064263,58125.0,58124.0,0.0824]
[1725195049118,0.516129,58125.0,58124.0,0.0824]
[1725195049326,0.172043,58125.0,58124.0,0.09913955]
[1725195049540,0.516129,58125.0,58124.0,0.21023955]
[1725195049743,0.516947,58125.0,58124.0,0.21023955]
[1725195050200,0.861033,58125.0,58124.0,0.21023955]
[1725195051736,0.62309781,58125.0,58124.0,0.21023955]
[1725195052183,0.79514081,58125.0,58124.0,0.21023955]
[1725195052390,0.45105481,58125.0,58124.0,0.21023955]
[1725195052837,0.000818,58125.0,58124.0,0.21023955]
[1725195053047,0.000818,58125.0,58124.0,0.40528455]
[1725195053715,0.000818,58125.0,58124.0,0.42228455]
[1725195053952,0.000818,58125.0,58124.0,1.21340579]
[1725195054164,0.000818,58125.0,58124.0,0.76437555]
[1725195054385,0.000818,58125.0,58124.0,1.23714061]
[1725195054594,0.000818,58125.0,58124.0,1.23914061]
[1725195054803,0.000818,58125.0,58124.0,1.11046655]
[1725195056134,0.000818,58125.0,58124.0,0.76637555]
[1725195056350,0.27397979,58136.0,58131.0,0.002]
[1725195056568,0.27397979,58136.0,58133.0,0.0773086]
[1725195056569,0.172018,58134.0,58133.0,0.0773086]
[1725195056997,0.172018,58134.0,58133.0,0.0167429]
[1725195057211,0.172018,58134.0,58133.0,0.09405115]
[1725195057426,0.172018,58134.0,58133.0,0.0167429]
[1725195057838,0.172018,58134.0,58133.0,0.09405738]
[1725195058045,0.172018,58134.0,58133.0,0.05537638]
[1725195058279,0.173018,58134.0,58133.0,0.06937638]
[1725195058726,0.172018,58134.0,58133.0,0.05437638]
[1725195058908,0.173018,58134.0,58133.0,0.06837638]
[1725195059387,0.001,58134.0,58133.0,0.06837638]
[1725195059601,0.002,58134.0,58133.0,0.08237638]
[1725195060196,0.002,58134.0,58133.0,0.08437638]
[1725195060465,0.001,58134.0,58133.0,0.17145376]
[1725195060690,0.001,58134.0,58133.0,0.0297429]
[1725195060691,0.517048,58134.0,58133.0,0.0297429]
[1725195060894,0.518048,58134.0,58133.0,0.0397429]
[1725195061545,0.518048,58134.0,58133.0,0.11707392]
[1725195061766,0.518048,58134.0,58133.0,0.11708295]
[1725195062362,0.518048,58134.0,58133.0,0.0397429]
[1725195063151,0.86208,58134.0,58133.0,0.0397429]
[1725195063506,1.348372,58134.0,58133.0,0.0397429]
[1725195063713,1.448372,58134.0,58133.0,0.0397429]
[1725195063928,1.448372,58134.0,58133.0,0.024]
[1725195064120,1.447372,58134.0,58133.0,0.014]
[1725195064324,1.442372,58134.0,58133.0,0.024]
[1725195064534,1.443372,58134.0,58133.0,0.024]
[1725195064737,1.442372,58134.0,58133.0,0.014]
[1725195065144,1.443372,58134.0,58133.0,0.024]
[1725195065353,1.443372,58134.0,58133.0,0.01]
[1725195065469,1.444372,58134.0,58133.0,0.024]
[1725195065906,1.443372,58134.0,58133.0,0.01]
[1725195066309,1.444372,58134.0,58133.0,0.024]
[1725195068382,1.444372,58134.0,58133.0,0.1078]
[1725195068383,1.302112,58134.0,58133.0,0.1078]
[1725195068622,0.95808,58134.0,58133.0,0.1078]
[1725195069053,0.95808,58134.0,58133.0,0.12437239]
[1725195070740,0.95808,58134.0,58133.0,0.04057239]
[1725195071356,0.95808,58134.0,58133.0,0.11791244]
[1725195071560,0.95808,58134.0,58133.0,0.11799282]
[1725195072432,2.537198,58134.0,58133.0,0.11799282]
[1725195072651,1.860415,58134.0,58133.0,0.04057239]
[1725195072851,1.516383,58134.0,58133.0,0.024]
[1725195073729,1.316467,58134.0,58133.0,0.024]
[1725195073911,1.625246,58134.0,58133.0,0.024]
[1725195074376,1.625246,58134.0,58133.0,0.10142043]
[1725195074991,1.625246,58134.0,58133.0,0.10232023]
[1725195075443,1.626064,58134.0,58133.0,0.0248998]
[1725195076466,1.626064,58134.0,58133.0,0.12812705]
[1725195076673,1.626064,58134.0,58133.0,0.0248998]
[1725195076881,1.30293,58134.0,58133.0,0.0248998]
[1725195077092,1.30293,58134.0,58133.0,0.1115998]
[1725195077313,1.30293,58134.0,58133.0,0.10240669]
[1725195077524,2.34132153,58134.0,58133.0,0.04147368]
[1725195077734,2.45202153,58134.0,58133.0,0.04147368]
[1725195077946,2.10798953,58134.0,58133.0,0.0248998]
[1725195078153,2.302996,58134.0,58133.0,0.0248998]
[1725195078412,1.958964,58134.0,58133.0,0.0248998]
[1725195079875,2.302996,58134.0,58133.0,0.0248998]
[1725195080117,1.958964,58134.0,58133.0,0.0248998]
[1725195080382,2.302996,58134.0,58133.0,0.0248998]
[1725195081118,1.958964,58134.0,58133.0,0.0248998]
[1725195081361,1.765064,58134.0,58133.0,0.0248998]
[1725195082051,2.109096,58134.0,58133.0,0.0248998]
[1725195082766,1.765064,58134.0,58133.0,0.0248998]
[1725195083247,2.109096,58134.0,58133.0,0.0248998]
[1725195083499,2.35312881,58134.0,58133.0,0.0248998]
[1725195085010,2.76094439,58134.0,58133.0,0.0108998]
[1725195085227,2.75994439,58134.0,58133.0,0.0158998]
[1725195085441,5.31004739,58134.0,58133.0,0.0158998]
[1725195085696,4.76613481,58134.0,58133.0,0.0158998]
[1725195085903,4.76413481,58134.0,58133.0,0.0008998]
[1725195086122,4.76513481,58134.0,58133.0,0.0088998]
[1725195087207,4.76513481,58134.0,58133.0,0.0158998]
[1725195087208,4.76613481,58134.0,58133.0,0.0158998]
[1725195087453,4.93468645,58134.0,58133.0,0.0158998]
[1725195089221,4.88455364,58134.0,58133.0,8e-07]
[1725195089431,2.40357845,58134.0,58133.0,8e-07]
[1725195090665,2.74761045,58134.0,58133.0,8e-07]
[1725195091927,1.548517,58120.0,58119.0,0.0008998]
[1725195092128,2.825677,58120.0,58119.0,0.0008998]
[1725195092329,2.825677,58120.0,58119.0,0.01749472]
[1725195092485,2.825677,58120.0,58119.0,0.0008998]
[1725195092868,3.169792,58120.0,58119.0,0.0008998]
[1725195093477,3.361092,58120.0,58119.0,0.0008998]
[1725195093687,3.362092,58120.0,58119.0,0.0008998]
[1725195093969,3.363092,58120.0,58119.0,0.0008998]
[1725195094645,3.362092,58120.0,58119.0,0.0008998]
[1725195094871,3.53064364,58120.0,58119.0,0.0008998]
[1725195095284,3.53064364,58120.0,58119.0,0.0068998]
[1725195095285,3.171792,58120.0,58119.0,0.0068998]
[1725195096106,4.885615,58120.0,58119.0,0.0068998]
[1725195099169,4.5415,58120.0,58119.0,0.0068998]
[1725195099377,2.568532,58120.0,58119.0,0.0068998]
[1725195099586,2.254964,58120.0,58119.0,0.0068998]
[1725195100441,1.945218,58120.0,58119.0,0.0068998]
[1725195100664,1.86005754,58120.0,58119.0,0.0068998]
[1725195104958,1.51594254,58120.0,58119.0,0.0068998]
[1725195106666,0.53301154,58120.0,58119.0,0.21997976]
[1725195106887,0.53301154,58120.0,58119.0,0.1998998]
[1725195107100,0.87712654,58120.0,58119.0,0.1998998]
[1725195107312,0.87712654,58120.0,58119.0,0.21651507]
[1725195107530,0.87712654,58120.0,58119.0,0.1998998]
[1725195110339,0.87794454,58120.0,58119.0,0.1998998]
[1725195110562,1.07000454,58120.0,58119.0,0.1998998]
[1725195110824,1.02322054,58120.0,58119.0,0.1998998]
[1725195112402,0.87794454,58120.0,58119.0,0.1998998]
[1725195113119,1.63519454,58120.0,58119.0,0.1998998]
[1725195113376,1.83930954,58120.0,58119.0,0.0945998]
[1725195113617,1.88944235,58120.0,58119.0,0.0945998]
[1725195114526,1.88944235,58120.0,58119.0,0.0068998]
[1725195114759,1.83930954,58120.0,58119.0,0.0068998]
[1725195116650,2.18342454,58120.0,58119.0,0.0068998]
[1725195117557,1.83930954,58120.0,58119.0,0.0068998]
[1725195117979,1.22205954,58120.0,58119.0,0.0068998]
[1725195118196,1.61684154,58120.0,58119.0,0.0068998]
[1725195118408,1.59559354,58120.0,58119.0,0.0068998]
[1725195119483,1.59559354,58120.0,58119.0,0.0961998]
[1725195119484,1.39924154,58120.0,58119.0,0.0961998]
[1725195119721,1.22205954,58120.0,58119.0,0.2019998]
[1725195120777,1.65950154,58120.0,58119.0,0.2019998]
[1725195121647,1.34794054,58120.0,58119.0,0.2019998]
[1725195123141,1.34794054,58120.0,58119.0,0.21860859]
[1725195123359,1.34794054,58120.0,58119.0,0.2019998]
[1725195124451,1.34794054,58120.0,58119.0,0.0961998]
[1725195125113,1.22205954,58120.0,58119.0,0.11280508]
[1725195125318,1.22205954,58120.0,58119.0,0.0961998]
[1725195125521,1.22205954,58120.0,58119.0,0.11280513]
[1725195127910,1.22205954,58120.0,58119.0,0.13190448]
[1725195130261,1.22205954,58120.0,58119.0,0.20924048]
[1725195130733,0.87794454,58120.0,58119.0,0.20924026]
[1725195131179,0.53382954,58120.0,58119.0,0.13190426]
[1725195131636,0.53382954,58120.0,58119.0,0.23501893]
[1725195131854,0.53382954,58120.0,58119.0,0.14484646]
[1725195132491,0.53382954,58120.0,58119.0,0.2737398]
[1725195132708,0.53382954,58120.0,58119.0,0.14484646]
[1725195133346,0.002818,58120.0,58119.0,0.41428376]
[1725195133560,0.002818,58120.0,58119.0,0.32339042]
[1725195133997,0.002818,58120.0,58119.0,0.32539042]
[1725195134189,0.001818,58120.0,58119.0,0.31939042]
[1725195134399,0.001818,58120.0,58119.0,0.32283127]
[1725195134606,0.002818,58120.0,58119.0,0.32883127]
[1725195134846,0.002818,58120.0,58119.0,0.50089127]
[1725195135083,0.001818,58120.0,58119.0,0.49745042]
[1725195135292,0.001818,58120.0,58119.0,0.84157142]
[1725195135506,0.002818,58120.0,58119.0,0.84257142]
[1725195135713,0.002818,58120.0,58119.0,0.8425688]
[1725195136950,0.002818,58120.0,58119.0,0.3243878]
[1725195137165,0.002818,58120.0,58119.0,0.3263878]
[1725195137591,0.174875,58120.0,58119.0,0.26674471]
[1725195137804,0.174875,58120.0,58119.0,0.24374471]
[1725195138028,0.174875,58120.0,58119.0,0.24990114]
[1725195138250,0.174875,58120.0,58119.0,0.26284091]
[1725195140608,0.174875,58120.0,58119.0,0.2437449]
[1725195140816,0.174875,58120.0,58119.0,0.24990124]
[1725195141038,0.174875,58120.0,58119.0,0.26284109]
[1725195141687,0.174875,58120.0,58119.0,0.26484109]
[1725195143911,0.174875,58120.0,58119.0,0.25190124]
[1725195146001,0.28424229,58121.0,58120.0,0.007]
[1725195146241,0.28424229,58121.0,58120.0,0.02609611]
[1725195146489,0.28424229,58121.0,58120.0,0.0426923]
[1725195146980,0.45629629,58121.0,58120.0,0.0426923]
[1725195147246,0.45629629,58121.0,58120.0,0.02359619]
[1725195147470,0.45729629,58121.0,58120.0,0.05569264]
[1725195147696,0.45829629,58121.0,58120.0,0.05059619]
[1725195147925,0.45829629,58121.0,58120.0,0.17089403]
[1725195149414,0.48528663,58121.0,58120.0,0.17089403]
[1725195149614,0.48528663,58121.0,58120.0,0.170902]
[1725195150255,0.48528663,58121.0,58120.0,0.17090662]
[1725195150721,0.48528663,58121.0,58120.0,0.06769264]
[1725195151128,0.48528663,58121.0,58120.0,0.17090761]
[1725195151376,0.48528663,58121.0,58120.0,0.06769264]
[1725195151614,0.174054,58121.0,58120.0,0.06769264]
[1725195151874,0.862272,58121.0,58120.0,0.06269264]
[1725195152087,0.862272,58121.0,58120.0,0.06769264]
[1725195154830,0.88926305,58121.0,58120.0,0.06769264]
[1725195155704,0.862272,58121.0,58120.0,0.06769264]
[1725195155908,0.862272,58121.0,58120.0,0.19668258]
[1725195156561,0.862272,58121.0,58120.0,0.19758238]
[1725195157238,0.862272,58121.0,58120.0,0.06859244]
[1725195157665,0.862272,58121.0,58120.0,0.04949599]
[1725195157901,0.862272,58121.0,58120.0,0.0685937]
[1725195158116,0.88926438,58121.0,58120.0,0.19258364]
[1725195158331,0.88926438,58121.0,58120.0,0.0635937]
[1725195158549,1.23337338,58121.0,58120.0,0.0635937]
[1725195158770,1.77025338,58121.0,58120.0,0.04699751]
[1725195158981,1.74256638,58121.0,58120.0,0.1502454]
[1725195159435,1.74256638,58121.0,58120.0,0.16684188]
[1725195160737,1.74256638,58121.0,58120.0,0.38755224]
[1725195160738,1.23337338,58121.0,58120.0,0.38755224]
[1725195160950,0.02899238,58121.0,58120.0,0.29742917]
[1725195161166,0.20104638,58121.0,58120.0,0.29742917]
[1725195161396,0.174054,58121.0,58120.0,0.29742917]
[1725195161632,0.174054,58121.0,58120.0,0.29942917]
[1725195161870,0.174054,58121.0,58120.0,0.29742917]
[1725195162564,0.002,58121.0,58120.0,0.29149399]
[1725195163454,0.002,58121.0,58120.0,0.29349399]
[1725195163711,0.002,58121.0,58120.0,0.29149399]
[1725195164136,0.002,58121.0,58120.0,0.29349399]
[1725195164361,0.002,58121.0,58120.0,0.29493465]
[1725195164573,0.002,58121.0,58120.0,0.44984039]
[1725195164805,0.0289892,58121.0,58120.0,0.47572265]
[1725195165260,0.0289892,58121.0,58120.0,0.47772265]
[1725195165473,0.002,58121.0,58120.0,0.47572265]
[1725195165941,0.002,58121.0,58120.0,0.32081691]
[1725195166157,0.002,58121.0,58120.0,0.49287391]
[1725195166374,0.002,58121.0,58120.0,0.83698891]
[1725195166813,0.002,58121.0,58120.0,1.17966325]
[1725195167270,0.002,58121.0,58120.0,1.17766325]
[1725195167526,0.002,58121.0,58120.0,1.17766001]
[1725195167743,0.001,58121.0,58120.0,1.16666001]
[1725195167950,0.002,58121.0,58120.0,1.18066001]
[1725195168154,0.002,58121.0,58120.0,1.17866001]
[1725195168573,0.002,58121.0,58120.0,1.18066001]
[1725195168777,0.001,58121.0,58120.0,1.16666001]
[1725195169002,0.001,58121.0,58120.0,1.18066001]
[1725195169657,0.001,58121.0,58120.0,1.17866001]
[1725195169658,0.001818,58121.0,58120.0,1.17866001]
[1725195170522,0.001818,58121.0,58120.0,1.517197]
[1725195170733,0.001818,58121.0,58120.0,1.40737889]
[1725195170950,0.001818,58121.0,58120.0,1.51519657]
[1725195171162,0.001818,58121.0,58120.0,1.40737889]
[1725195172476,0.001818,58121.0,58120.0,1.17866001]
[1725195173130,0.001818,58121.0,58120.0,1.16466001]
[1725195173567,0.001818,58121.0,58120.0,1.14556001]
[1725195173786,0.001818,58121.0,58120.0,1.16665427]
[1725195173994,0.000818,58121.0,58120.0,1.16465427]
[1725195174199,0.000818,58121.0,58120.0,1.39336633]
[1725195174636,0.000818,58121.0,58120.0,1.75148133]
[1725195174849,0.000818,58121.0,58120.0,1.75148513]
[1725195175057,0.000818,58121.0,58120.0,1.52276927]
[1725195175730,0.000818,58121.0,58120.0,1.75348513]
[1725195175936,0.000818,58121.0,58120.0,1.52476927]
[1725195176151,0.137838,58133.0,58132.0,0.005]
[1725195176374,0.172835,58134.0,58132.0,0.240086]
[1725195176590,0.172835,58134.0,58133.0,0.01909426]
[1725195177097,0.172835,58134.0,58133.0,0.03567039]
[1725195177800,0.000818,58134.0,58133.0,0.03567039]
[1725195178030,0.000818,58134.0,58133.0,0.16476695]
[1725195178031,0.172016,58134.0,58133.0,0.16476695]
[1725195178446,0.172016,58134.0,58133.0,0.17876695]
[1725195178665,0.172016,58134.0,58133.0,0.04967039]
[1725195178879,0.172016,58134.0,58133.0,0.17876695]
[1725195179085,0.516048,58134.0,58133.0,0.17876695]
[1725195179322,0.516048,58134.0,58133.0,0.06367039]
[1725195179544,0.54303304,58134.0,58133.0,0.06367039]
[1725195180217,0.54303304,58134.0,58133.0,0.04967039]
[1725195180430,0.19900104,58134.0,58133.0,0.07404709]
[1725195180634,0.19900104,58134.0,58133.0,0.08804709]
[1725195180844,0.19900104,58134.0,58133.0,0.07404709]
[1725195181050,0.02698504,58134.0,58133.0,0.08804709]
[1725195181506,0.172014,58135.0,58134.0,0.005]
[1725195181748,0.172834,58134.0,58133.0,0.18867309]
[1725195181957,0.172834,58134.0,58133.0,0.19119037]
[1725195182178,0.172834,58134.0,58133.0,0.07867034]
[1725195182409,0.172834,58134.0,58133.0,0.06467034]
[1725195182624,0.172834,58134.0,58133.0,0.06467031]
[1725195182836,0.516866,58134.0,58133.0,0.06467031]
[1725195183081,0.516866,58134.0,58133.0,0.15292127]
[1725195183288,0.516866,58134.0,58133.0,0.04067031]
[1725195183505,0.516866,58134.0,58133.0,0.15292016]
[1725195183506,1.09121961,58134.0,58133.0,0.15292016]
[1725195183720,4.27124681,58134.0,58133.0,0.04967031]
[1725195183942,4.16353581,58134.0,58133.0,0.03309378]
[1725195184158,4.33208745,58134.0,58133.0,0.03309378]
[1725195184373,2.461503,58134.0,58133.0,0.04709378]
[1725195184588,2.33002,58134.0,58133.0,0.04709378]
[1725195184796,2.28672943,58134.0,58133.0,0.03309378]
[1725195185012,2.25974,58134.0,58133.0,0.03309378]
[1725195185248,1.681068,58134.0,58133.0,0.04709378]
[1725195185725,1.50123,58134.0,58133.0,0.042]
[1725195185946,1.30493,58134.0,58133.0,0.06109543]
[1725195186157,1.30493,58134.0,58133.0,0.05858038]
[1725195186374,1.30493,58134.0,58133.0,0.06367577]
[1725195186624,1.30493,58134.0,58133.0,0.07767577]
[1725195187331,1.50113,58134.0,58133.0,0.07767577]
[1725195188020,1.69743,58134.0,58133.0,0.06109539]
[1725195188301,1.72441793,58134.0,58133.0,0.06109539]
[1725195189209,1.72441793,58134.0,58133.0,0.06109664]
[1725195191605,1.69743,58134.0,58133.0,0.06109664]
[1725195192062,2.041462,58134.0,58133.0,0.06109664]
[1725195193055,2.13208909,58134.0,58133.0,0.06109664]
[1725195193301,2.13208909,58134.0,58133.0,0.042]
[1725195193775,2.041462,58134.0,58133.0,0.042]
[1725195194269,2.041462,58134.0,58133.0,0.0428998]
[1725195194535,2.041462,58134.0,58133.0,0.0008998]
[1725195194802,2.041462,58134.0,58133.0,0.0158998]
[1725195195050,2.041462,58134.0,58133.0,0.0088998]
[1725195195296,2.041462,58134.0,58133.0,0.0008998]
[1725195195525,2.041462,58134.0,58133.0,0.0078998]
[1725195195751,2.041462,58134.0,58133.0,0.0158998]
[1725195196437,2.0684523,58134.0,58133.0,0.0158998]
[1725195196896,3.0638833,58134.0,58133.0,0.0158998]
[1725195197798,2.9556223,58134.0,58133.0,0.0158998]
[1725195198015,2.8483933,58134.0,58133.0,0.0158998]
[1725195201455,2.821403,58134.0,58133.0,0.0158998]
[1725195202471,1.720486,58134.0,58133.0,0.0158998]
[1725195202668,1.459931,58134.0,58133.0,0.0158998]
[1725195204099,1.30493,58134.0,58133.0,0.0158998]
[1725195204634,1.33191798,58134.0,58133.0,0.1016998]
[1725195205013,1.33191798,58134.0,58133.0,0.11828899]
[1725195205441,1.33191798,58134.0,58133.0,0.11028899]
[1725195205846,1.33191798,58134.0,58133.0,0.12328899]
[1725195206477,1.33191798,58134.0,58133.0,0.12928899]
[1725195207163,1.33191798,58134.0,58133.0,0.20673587]
[1725195207577,1.33191798,58134.0,58133.0,0.12928899]
[1725195207979,2.18647598,58134.0,58133.0,0.12928899]
[1725195208235,2.18647598,58134.0,58133.0,0.04348899]
[1725195208454,2.70252598,58134.0,58133.0,0.04348899]
[1725195208909,1.84796798,58134.0,58133.0,0.0268998]
[1725195209119,1.84796798,58134.0,58133.0,0.10434668]
[1725195209316,1.84796798,58134.0,58133.0,0.04348087]
[1725195209536,1.84796798,58134.0,58133.0,0.12092775]
[1725195211439,1.50393598,58134.0,58133.0,0.12092775]
[1725195211652,1.476948,58134.0,58133.0,0.33824338]
[1725195211868,1.476948,58134.0,58133.0,0.12090183]
[1725195211869,2.545148,58134.0,58133.0,0.12090183]
[1725195212135,2.88918,58134.0,58133.0,0.12090183]
[1725195212553,2.88918,58134.0,58133.0,0.0268998]
[1725195213394,2.662142,58134.0,58133.0,0.0268998]
[1725195213862,2.485235,58134.0,58133.0,0.0268998]
[1725195214981,2.85625641,58134.0,58133.0,0.0268998]
[1725195215184,2.51222441,58134.0,58133.0,0.0268998]
[1725195216093,2.43425441,58134.0,58133.0,0.0268998]
[1725195216350,2.41335341,58134.0,58133.0,0.0268998]
[1725195218290,2.37025241,58134.0,58133.0,0.0268998]
[1725195218908,2.90478441,58134.0,58133.0,0.0268998]
[1725195221075,3.67754841,58134.0,58133.0,0.0268998]
[1725195221278,3.66561741,58134.0,58133.0,0.0268998]
[1725195221486,3.638628,58134.0,58133.0,0.0268998]
[1725195221689,3.551215,58134.0,58133.0,0.0268998]
[1725195221895,3.496014,58134.0,58133.0,0.0268998]
[1725195223139,2.427811,58134.0,58133.0,0.0268998]
[1725195224735,2.323364,58134.0,58133.0,0.1379998]
[1725195224989,2.322546,58134.0,58133.0,0.1379998]
[1725195225497,2.322546,58134.0,58133.0,0.0268998]
[1725195226181,2.34953492,58134.0,58133.0,0.0268998]
[1725195231549,2.322546,58134.0,58133.0,0.0268998]
[1725195231992,2.669846,58134.0,58133.0,0.0268998]
[1725195234108,2.649732,58134.0,58133.0,0.0268998]
[1725195234805,2.67672057,58134.0,58133.0,0.0268998]
[1725195235946,2.00319057,58134.0,58133.0,0.0268998]
[1725195236168,1.84715057,58134.0,58133.0,0.0268998]
[1725195236429,1.84715057,58134.0,58133.0,0.04348766]
[1725195236677,1.84715057,58134.0,58133.0,0.12099194]
[1725195237076,1.84715057,58134.0,58133.0,0.04348766]
[1725195237499,1.84715057,58134.0,58133.0,0.12099194]
[1725195237746,1.84715057,58134.0,58133.0,0.04348766]
[1725195238166,1.50311857,58134.0,58133.0,0.19357675]
[1725195238417,1.50311857,58134.0,58133.0,0.36556147]
[1725195238634,1.50311857,58134.0,58133.0,0.36555728]
[1725195238839,1.89601657,58134.0,58133.0,0.23081112]
[1725195239082,1.61099057,58134.0,58133.0,0.12748347]
[1725195240651,1.95502257,58134.0,58133.0,0.12748347]
[1725195241327,1.61180857,58134.0,58133.0,0.12748347]
[1725195241539,1.58482,58134.0,58133.0,0.12748347]
[1725195241752,1.928852,58134.0,58133.0,0.12748347]
[1725195242181,1.928852,58134.0,58133.0,0.1108998]
[1725195242836,1.928852,58134.0,58133.0,0.12748183]
[1725195244121,1.240788,58134.0,58133.0,0.23638183]
[1725195244366,1.132916,58134.0,58133.0,0.34472569]
[1725195244794,0.788884,58134.0,58133.0,0.34472569]
[1725195245007,0.81586902,58134.0,58133.0,0.34472569]
[1725195245217,1.15990102,58134.0,58133.0,0.34472569]
[1725195245431,1.15990102,58134.0,58133.0,0.33172569]
[1725195245689,1.15990102,58134.0,58133.0,0.33272569]
[1725195245901,0.64385302,58134.0,58133.0,0.33616576]
[1725195246108,0.64385302,58134.0,58133.0,0.2468219]
[1725195246109,0.54385302,58134.0,58133.0,0.2468219]
[1725195246325,0.54385302,58134.0,58133.0,0.2698219]
[1725195247000,0.54385302,58134.0,58133.0,0.25238183]
[1725195247213,0.54385302,58134.0,58133.0,0.38156166]
[1725195247435,0.54385302,58134.0,58133.0,0.25238183]
[1725195247645,0.71586902,58134.0,58133.0,0.26638183]
[1725195247869,0.71586902,58134.0,58133.0,0.25238183]
[1725195248308,0.71586902,58134.0,58133.0,0.26638183]
[1725195249354,0.71586902,58134.0,58133.0,0.25238183]
[1725195249584,0.71586902,58134.0,58133.0,0.26638183]
[1725195250651,0.54385302,58134.0,58133.0,0.26982185]
[1725195251487,0.516868,58134.0,58133.0,0.26982185]
[1725195251905,0.516868,58134.0,58133.0,0.27182185]
[1725195252809,0.516868,58134.0,58133.0,0.26838183]
[1725195253030,0.516868,58134.0,58133.0,0.26638183]
[1725195253727,0.516868,58134.0,58133.0,0.27638183]
[1725195253934,0.516868,58134.0,58133.0,0.44840083]
[1725195254248,0.516868,58134.0,58133.0,0.4518408]
[1725195255040,0.54385172,58134.0,58133.0,0.4518408]
[1725195256031,0.29267961,58134.0,58133.0,0.4518408]